[Event "*** Titled Tuesday Blitz"]
[Site "Chess.com"]
[Date "2020.05.05"]
[Round "4"]
[White "BvsN"]
[Black "Boudicca64"]
[Result "1-0"]
[WhiteElo "2368"]
[BlackElo "1941"]
[TimeControl "180+1"]
[EndTime "10:41:13 PDT"]
[Termination "BvsN won on time"]

1. d4 {[%clk 0:03:00.9]} 1... Nf6 {[%clk 0:02:57.6]} 2. c4 {[%clk 0:03:00.9]}
2... e6 {[%clk 0:02:56]} 3. Nc3 {[%clk 0:03:01]} 3... d5 {[%clk 0:02:54.3]} 4.
cxd5 {[%clk 0:03:00.5]} 4... exd5 {[%clk 0:02:54.1]} 5. Bg5 {[%clk 0:03:00.1]}
5... c6 {[%clk 0:02:54]} 6. e3 {[%clk 0:03:00.1]} 6... Qb6 {[%clk 0:02:54.2]} 7.
Qc2 {[%clk 0:02:46.3]} 7... Ne4 {[%clk 0:02:53.2]} 8. Bf4 {[%clk 0:02:27.9]}
8... Na6 {[%clk 0:02:28.8]} 9. a3 {[%clk 0:02:20.2]} 9... Qa5 {[%clk 0:02:17.3]}
10. Rc1 {[%clk 0:02:09.2]} 10... Bf5 {[%clk 0:01:49.7]} 11. Bd3 {[%clk
0:02:05.6]} 11... Nxc3 {[%clk 0:01:48.8]} 12. Qxc3 {[%clk 0:02:03.5]} 12...
Qxc3+ {[%clk 0:01:46.8]} 13. Rxc3 {[%clk 0:02:03.3]} 13... Bxd3 {[%clk
0:01:46.4]} 14. Rxd3 {[%clk 0:02:03.8]} 14... Kd7 {[%clk 0:01:40.3]} 15. Nf3
{[%clk 0:02:02.4]} 15... f6 {[%clk 0:01:38.7]} 16. Ke2 {[%clk 0:02:01.3]} 16...
Bd6 {[%clk 0:01:38.4]} 17. Bxd6 {[%clk 0:02:00.3]} 17... Kxd6 {[%clk 0:01:39.3]}
18. Rc1 {[%clk 0:02:00.2]} 18... Rhc8 {[%clk 0:01:37.8]} 19. b4 {[%clk 0:02:00]}
19... Nc7 {[%clk 0:01:34.6]} 20. Rdc3 {[%clk 0:01:59.2]} 20... a5 {[%clk
0:01:33.4]} 21. Rb3 {[%clk 0:01:47.6]} 21... axb4 {[%clk 0:01:32.6]} 22. Rxb4
{[%clk 0:01:44.9]} 22... b5 {[%clk 0:01:12.2]} 23. Rb3 {[%clk 0:01:43.8]} 23...
Ra4 {[%clk 0:01:09.8]} 24. Nd2 {[%clk 0:01:41.7]} 24... Na8 {[%clk 0:01:04.2]}
25. Nb1 {[%clk 0:01:35.2]} 25... Nb6 {[%clk 0:01:03]} 26. Nc3 {[%clk 0:01:10.5]}
26... Ra5 {[%clk 0:01:01.8]} 27. Ra1 {[%clk 0:00:47.7]} 27... Rca8 {[%clk
0:00:59.6]} 28. Kd3 {[%clk 0:00:43.3]} 28... Nc4 {[%clk 0:00:58.1]} 29. a4
{[%clk 0:00:33.9]} 29... bxa4 {[%clk 0:00:56.4]} 30. Rb7 {[%clk 0:00:27.2]}
30... R8a7 {[%clk 0:00:47]} 31. Rb8 {[%clk 0:00:23.2]} 31... a3 {[%clk
0:00:40.2]} 32. Ra2 {[%clk 0:00:23.6]} 32... Kc7 {[%clk 0:00:29.6]} 33. Rg8
{[%clk 0:00:22.8]} 33... Kd6 {[%clk 0:00:28.1]} 34. e4 {[%clk 0:00:23.1]} 34...
Rb7 {[%clk 0:00:23.3]} 35. exd5 {[%clk 0:00:21.6]} 35... cxd5 {[%clk 0:00:24.2]}
36. Rd8+ {[%clk 0:00:20.7]} 36... Ke6 {[%clk 0:00:21.1]} 37. Re2+ {[%clk
0:00:11.2]} 37... Kf7 {[%clk 0:00:17.7]} 38. Na2 {[%clk 0:00:09]} 38... Rb2
{[%clk 0:00:12.6]} 39. Rc8 {[%clk 0:00:05.5]} 39... Rxe2 {[%clk 0:00:10.3]} 40.
Kxe2 {[%clk 0:00:05.4]} 40... Rb5 {[%clk 0:00:11]} 41. Kd3 {[%clk 0:00:05.3]}
41... Rb2 {[%clk 0:00:10.6]} 42. Nc3 {[%clk 0:00:05.5]} 42... Rb3 {[%clk
0:00:06.7]} 43. Ra8 {[%clk 0:00:03.2]} 43... Nb2+ {[%clk 0:00:04]} 44. Kc2
{[%clk 0:00:03.4]} 44... Rb7 {[%clk 0:00:02.3]} 45. Nxd5 {[%clk 0:00:03.3]}
45... Nc4 {[%clk 0:00:03]} 46. Nc3 {[%clk 0:00:03.3]} 46... Rb2+ {[%clk
0:00:01.5]} 47. Kc1 {[%clk 0:00:03.5]} 1-0

[Event "*** Titled Tuesday Blitz"]
[Site "Chess.com"]
[Date "2020.05.05"]
[Round "4"]
[White "Zakaryan_David"]
[Black "Harsha_Bharathakoti"]
[Result "0-1"]
[WhiteElo "2563"]
[BlackElo "2831"]
[TimeControl "180+1"]
[EndTime "10:41:15 PDT"]
[Termination "Harsha_Bharathakoti won by resignation"]

1. d4 {[%clk 0:03:00.9]} 1... Nf6 {[%clk 0:02:58.3]} 2. c4 {[%clk 0:03:00.7]}
2... e6 {[%clk 0:02:57.5]} 3. Nf3 {[%clk 0:02:54.9]} 3... d5 {[%clk 0:02:57.4]}
4. g3 {[%clk 0:02:53.1]} 4... dxc4 {[%clk 0:02:57.1]} 5. Qa4+ {[%clk 0:02:45.9]}
5... Bd7 {[%clk 0:02:17.2]} 6. Qxc4 {[%clk 0:02:45.1]} 6... c5 {[%clk
0:02:17.9]} 7. Bg2 {[%clk 0:02:42.6]} 7... Bc6 {[%clk 0:02:08.5]} 8. O-O {[%clk
0:02:34.9]} 8... Nbd7 {[%clk 0:02:08.6]} 9. Nc3 {[%clk 0:02:29.6]} 9... Rc8
{[%clk 0:02:03.6]} 10. Rd1 {[%clk 0:01:53.7]} 10... Be7 {[%clk 0:01:31.8]} 11.
Bg5 {[%clk 0:01:50.6]} 11... O-O {[%clk 0:00:58.5]} 12. Bxf6 {[%clk 0:01:31.2]}
12... Bxf6 {[%clk 0:00:58.4]} 13. dxc5 {[%clk 0:01:28.1]} 13... Qe7 {[%clk
0:00:51.7]} 14. b4 {[%clk 0:01:16.2]} 14... Nxc5 {[%clk 0:00:33.9]} 15. bxc5
{[%clk 0:01:07.1]} 15... Bxf3 {[%clk 0:00:34.2]} 16. Bxf3 {[%clk 0:00:51.3]}
16... Rxc5 {[%clk 0:00:34.3]} 17. Qb3 {[%clk 0:00:20]} 17... Rxc3 {[%clk
0:00:34.4]} 18. Qxb7 {[%clk 0:00:19.4]} 18... Qxb7 {[%clk 0:00:35.1]} 19. Bxb7
{[%clk 0:00:20.3]} 19... Rc2 {[%clk 0:00:35.6]} 20. Rab1 {[%clk 0:00:17.1]}
20... Rxe2 {[%clk 0:00:18.2]} 21. a4 {[%clk 0:00:16.7]} 21... Ra2 {[%clk
0:00:13.4]} 22. Bc6 {[%clk 0:00:13.5]} 22... Rc8 {[%clk 0:00:13.7]} 23. Bd7
{[%clk 0:00:13.1]} 23... Rd8 {[%clk 0:00:11.7]} 24. Bb5 {[%clk 0:00:12.1]} 24...
Bd4 {[%clk 0:00:10.1]} 25. Rbc1 {[%clk 0:00:07.8]} 25... e5 {[%clk 0:00:07.4]}
26. Kh1 {[%clk 0:00:06.8]} 26... Rxf2 {[%clk 0:00:07]} 27. Rc7 {[%clk
0:00:07.1]} 27... Rf8 {[%clk 0:00:03.9]} 28. Rf1 {[%clk 0:00:06.1]} 28... Rxf1+
{[%clk 0:00:03.1]} 29. Bxf1 {[%clk 0:00:07]} 29... g6 {[%clk 0:00:02.2]} 30. Bc4
{[%clk 0:00:07.3]} 30... Kg7 {[%clk 0:00:03.1]} 31. Kg2 {[%clk 0:00:07.6]} 31...
h5 {[%clk 0:00:03.1]} 32. Kf3 {[%clk 0:00:07.3]} 32... g5 {[%clk 0:00:02.6]} 33.
h3 {[%clk 0:00:07.4]} 33... Kg6 {[%clk 0:00:03.5]} 34. Bd3+ {[%clk 0:00:07.2]}
34... f5 {[%clk 0:00:03.8]} 35. Rc6+ {[%clk 0:00:07.1]} 35... Rf6 {[%clk
0:00:04.1]} 36. Rxf6+ {[%clk 0:00:06.6]} 36... Kxf6 {[%clk 0:00:05]} 37. Bb5
{[%clk 0:00:06.7]} 37... e4+ {[%clk 0:00:05.9]} 38. Ke2 {[%clk 0:00:07.2]} 38...
Ke5 {[%clk 0:00:06.7]} 39. Be8 {[%clk 0:00:06.9]} 39... h4 {[%clk 0:00:07.4]}
40. gxh4 {[%clk 0:00:07]} 40... gxh4 {[%clk 0:00:08.3]} 41. Bh5 {[%clk
0:00:06.7]} 41... f4 {[%clk 0:00:08.4]} 42. Bg4 {[%clk 0:00:06.9]} 42... f3+
{[%clk 0:00:09.3]} 43. Kf1 {[%clk 0:00:05.7]} 43... Kf4 {[%clk 0:00:09.1]} 44.
Bd7 {[%clk 0:00:05.5]} 44... e3 {[%clk 0:00:09]} 0-1

[Event "*** Titled Tuesday Blitz"]
[Site "Chess.com"]
[Date "2020.05.05"]
[Round "4"]
[White "Gromes7"]
[Black "ChronicUnhappiness"]
[Result "0-1"]
[WhiteElo "2100"]
[BlackElo "2309"]
[TimeControl "180+1"]
[EndTime "10:41:15 PDT"]
[Termination "ChronicUnhappiness won by resignation"]

1. e4 {[%clk 0:03:00.9]} 1... Nf6 {[%clk 0:02:59.8]} 2. Nc3 {[%clk 0:02:58.3]}
2... d5 {[%clk 0:02:57.9]} 3. e5 {[%clk 0:02:58.7]} 3... d4 {[%clk 0:02:57.2]}
4. exf6 {[%clk 0:02:58.2]} 4... dxc3 {[%clk 0:02:56.7]} 5. fxg7 {[%clk
0:02:58.9]} 5... cxd2+ {[%clk 0:02:55.7]} 6. Qxd2 {[%clk 0:02:59.8]} 6... Qxd2+
{[%clk 0:02:55]} 7. Bxd2 {[%clk 0:03:00.7]} 7... Bxg7 {[%clk 0:02:55.3]} 8.
O-O-O {[%clk 0:03:01.6]} 8... Nc6 {[%clk 0:02:55]} 9. Bc4 {[%clk 0:02:56.4]}
9... Bf5 {[%clk 0:02:46.4]} 10. Ne2 {[%clk 0:02:52.3]} 10... O-O {[%clk
0:02:35]} 11. h4 {[%clk 0:02:26.2]} 11... h6 {[%clk 0:02:30.1]} 12. f3 {[%clk
0:02:25.6]} 12... Ne5 {[%clk 0:02:07.9]} 13. Bb3 {[%clk 0:02:18.7]} 13... c5
{[%clk 0:02:07.4]} 14. Bd5 {[%clk 0:02:11.4]} 14... Rad8 {[%clk 0:01:59.9]} 15.
Bc3 {[%clk 0:02:10.3]} 15... b6 {[%clk 0:01:52.3]} 16. g4 {[%clk 0:02:09.1]}
16... Bh7 {[%clk 0:01:43.8]} 17. f4 {[%clk 0:01:22.1]} 17... Nxg4 {[%clk
0:01:36.4]} 18. Bxg7 {[%clk 0:01:21.8]} 18... Kxg7 {[%clk 0:01:36]} 19. Rhg1
{[%clk 0:01:14.1]} 19... f5 {[%clk 0:01:24.8]} 20. h5 {[%clk 0:01:05.4]} 20...
Bg8 {[%clk 0:01:16.6]} 21. Bf3 {[%clk 0:01:02.5]} 21... Rxd1+ {[%clk 0:01:11]}
22. Kxd1 {[%clk 0:01:03]} 22... Be6 {[%clk 0:01:06.1]} 23. Ng3 {[%clk
0:00:49.4]} 23... Kf6 {[%clk 0:00:54.2]} 24. Nf1 {[%clk 0:00:37.1]} 24... Rg8
{[%clk 0:00:48.1]} 25. b3 {[%clk 0:00:32.3]} 25... Nf2+ {[%clk 0:00:44.4]} 26.
Ke2 {[%clk 0:00:31]} 26... Rxg1 {[%clk 0:00:44.3]} 27. Kxf2 {[%clk 0:00:31.8]}
27... Rg8 {[%clk 0:00:43.2]} 28. c4 {[%clk 0:00:27.6]} 28... Rd8 {[%clk
0:00:41.6]} 29. Ke3 {[%clk 0:00:23.9]} 29... Bf7 {[%clk 0:00:41.4]} 30. Ng3
{[%clk 0:00:21.1]} 30... e5 {[%clk 0:00:40.8]} 31. fxe5+ {[%clk 0:00:20]} 31...
Kxe5 {[%clk 0:00:41.7]} 32. Ne2 {[%clk 0:00:18.1]} 32... Rd4 {[%clk 0:00:33]}
33. Nc3 {[%clk 0:00:13.9]} 33... Rh4 {[%clk 0:00:30.7]} 34. Ne2 {[%clk
0:00:10.2]} 34... Bxh5 {[%clk 0:00:29.1]} 35. Bxh5 {[%clk 0:00:09.8]} 35... Rxh5
{[%clk 0:00:28.3]} 36. Nf4 {[%clk 0:00:10.5]} 36... Rh1 {[%clk 0:00:25.2]} 37.
Ng6+ {[%clk 0:00:07.3]} 37... Kf6 {[%clk 0:00:24.5]} 38. Nf4 {[%clk 0:00:07]}
38... Ra1 {[%clk 0:00:22.2]} 39. Nd5+ {[%clk 0:00:06.8]} 39... Ke5 {[%clk
0:00:21.5]} 40. Nc3 {[%clk 0:00:07.2]} 40... h5 {[%clk 0:00:21.3]} 41. Kf3
{[%clk 0:00:07.3]} 41... f4 {[%clk 0:00:16.8]} 42. Kf2 {[%clk 0:00:05.6]} 42...
h4 {[%clk 0:00:16]} 43. Kf3 {[%clk 0:00:05.8]} 43... h3 {[%clk 0:00:15.5]} 44.
Nd5 {[%clk 0:00:03.6]} 44... Rxa2 {[%clk 0:00:13.7]} 45. Nxf4 {[%clk 0:00:02.5]}
45... h2 {[%clk 0:00:11.6]} 46. Nd3+ {[%clk 0:00:01.4]} 46... Kd4 {[%clk
0:00:11.6]} 47. Nf2 {[%clk 0:00:01.2]} 47... Rxf2+ {[%clk 0:00:11.2]} 48. Kxf2
{[%clk 0:00:02.1]} 48... h1=Q {[%clk 0:00:12.1]} 0-1

[Event "*** Titled Tuesday Blitz"]
[Site "Chess.com"]
[Date "2020.05.05"]
[Round "4"]
[White "IMRosen"]
[Black "MisiekZielony"]
[Result "1-0"]
[WhiteElo "2568"]
[BlackElo "2153"]
[TimeControl "180+1"]
[EndTime "10:41:16 PDT"]
[Termination "IMRosen won on time"]

1. d4 {[%clk 0:03:00.9]} 1... d5 {[%clk 0:02:59.5]} 2. Bf4 {[%clk 0:03:01]} 2...
Nf6 {[%clk 0:02:56.6]} 3. e3 {[%clk 0:03:00.6]} 3... c5 {[%clk 0:02:56.6]} 4.
Nf3 {[%clk 0:03:00.9]} 4... cxd4 {[%clk 0:02:54.6]} 5. exd4 {[%clk 0:03:00.9]}
5... Nc6 {[%clk 0:02:54.3]} 6. Nbd2 {[%clk 0:03:00.5]} 6... Bg4 {[%clk
0:02:53.7]} 7. Bb5 {[%clk 0:02:56.1]} 7... Qb6 {[%clk 0:02:23.5]} 8. c4 {[%clk
0:02:28.5]} 8... dxc4 {[%clk 0:02:03.5]} 9. a4 {[%clk 0:02:23.5]} 9... a6 {[%clk
0:01:51]} 10. Nxc4 {[%clk 0:02:13]} 10... Qd8 {[%clk 0:01:49.4]} 11. Bxc6+
{[%clk 0:02:09.5]} 11... bxc6 {[%clk 0:01:49.3]} 12. h3 {[%clk 0:02:10.3]} 12...
Be6 {[%clk 0:01:35.6]} 13. Rc1 {[%clk 0:02:05.9]} 13... Bd5 {[%clk 0:01:34.4]}
14. a5 {[%clk 0:01:40.3]} 14... Bxc4 {[%clk 0:01:25.1]} 15. Rxc4 {[%clk
0:01:40]} 15... Qxa5+ {[%clk 0:01:25]} 16. Bd2 {[%clk 0:01:40.7]} 16... Qd5
{[%clk 0:00:44.3]} 17. Qc2 {[%clk 0:01:36.1]} 17... e6 {[%clk 0:00:41.2]} 18.
Rxc6 {[%clk 0:01:24.1]} 18... Qe4+ {[%clk 0:00:40.5]} 19. Qxe4 {[%clk
0:01:21.5]} 19... Nxe4 {[%clk 0:00:40.5]} 20. Ne5 {[%clk 0:01:01.4]} 20... Nxd2
{[%clk 0:00:33.1]} 21. Kxd2 {[%clk 0:01:01]} 21... Bb4+ {[%clk 0:00:33.6]} 22.
Kd3 {[%clk 0:01:00]} 22... O-O {[%clk 0:00:33.9]} 23. Rhc1 {[%clk 0:00:57.3]}
23... a5 {[%clk 0:00:31.2]} 24. Rb6 {[%clk 0:00:51.2]} 24... Rfd8 {[%clk
0:00:21.6]} 25. Rc7 {[%clk 0:00:35]} 25... Bd6 {[%clk 0:00:19.7]} 26. Rxd6
{[%clk 0:00:18.5]} 26... Rxd6 {[%clk 0:00:19.5]} 27. Nxf7 {[%clk 0:00:19.4]}
27... Rd5 {[%clk 0:00:18.1]} 28. f4 {[%clk 0:00:10.6]} 28... Rf8 {[%clk
0:00:15.3]} 29. Ng5 {[%clk 0:00:09.2]} 29... Re8 {[%clk 0:00:10.8]} 30. Ke4
{[%clk 0:00:04.6]} 30... Rb5 {[%clk 0:00:10]} 31. Nf3 {[%clk 0:00:02]} 31...
Rxb2 {[%clk 0:00:08.7]} 32. Ra7 {[%clk 0:00:02.6]} 32... Rxg2 {[%clk 0:00:07.9]}
33. Rxa5 {[%clk 0:00:02.1]} 33... Rg3 {[%clk 0:00:07.5]} 34. h4 {[%clk
0:00:02.2]} 34... Rf8 {[%clk 0:00:07.5]} 35. Ng5 {[%clk 0:00:02]} 35... Re8
{[%clk 0:00:06.9]} 36. Ra6 {[%clk 0:00:02.6]} 36... h6 {[%clk 0:00:06.8]} 37.
Nxe6 {[%clk 0:00:02.8]} 37... Rg4 {[%clk 0:00:05.4]} 38. d5 {[%clk 0:00:02.9]}
38... Rxh4 {[%clk 0:00:05.2]} 39. Kf5 {[%clk 0:00:03.3]} 39... Rh1 {[%clk
0:00:03.8]} 40. Ra7 {[%clk 0:00:03.7]} 40... Rg1 {[%clk 0:00:03.2]} 41. d6
{[%clk 0:00:04.2]} 41... Rd1 {[%clk 0:00:02.8]} 42. d7 {[%clk 0:00:04]} 42...
Rd8 {[%clk 0:00:01.2]} 43. Nxd8 {[%clk 0:00:04]} 1-0

[Event "*** Titled Tuesday Blitz"]
[Site "Chess.com"]
[Date "2020.05.05"]
[Round "4"]
[White "Dii210"]
[Black "Gvetadze"]
[Result "0-1"]
[WhiteElo "2037"]
[BlackElo "2377"]
[TimeControl "180+1"]
[EndTime "10:41:16 PDT"]
[Termination "Gvetadze won by checkmate"]

1. c4 {[%clk 0:03:00.9]} 1... Nf6 {[%clk 0:03:00.2]} 2. Nc3 {[%clk 0:02:59.7]}
2... g6 {[%clk 0:03:01.1]} 3. g3 {[%clk 0:02:59.4]} 3... Bg7 {[%clk 0:03:01.4]}
4. Bg2 {[%clk 0:02:59.6]} 4... O-O {[%clk 0:03:01.9]} 5. e3 {[%clk 0:02:59.7]}
5... d6 {[%clk 0:03:02.4]} 6. Nge2 {[%clk 0:02:59.7]} 6... Nbd7 {[%clk
0:03:01.8]} 7. O-O {[%clk 0:02:59.4]} 7... e5 {[%clk 0:03:02]} 8. d4 {[%clk
0:02:59.3]} 8... Qe7 {[%clk 0:03:02.1]} 9. b3 {[%clk 0:02:58.5]} 9... c6 {[%clk
0:03:02.2]} 10. Ba3 {[%clk 0:02:58]} 10... Rd8 {[%clk 0:03:01.7]} 11. Rc1 {[%clk
0:02:52.4]} 11... Nf8 {[%clk 0:02:57.6]} 12. h3 {[%clk 0:02:43.1]} 12... e4
{[%clk 0:02:51.8]} 13. Qc2 {[%clk 0:02:36.9]} 13... Re8 {[%clk 0:02:51.3]} 14.
Rfd1 {[%clk 0:02:27.1]} 14... h5 {[%clk 0:02:50.9]} 15. h4 {[%clk 0:02:26]}
15... Bg4 {[%clk 0:02:47.1]} 16. Rd2 {[%clk 0:02:24.6]} 16... Bf3 {[%clk
0:02:34.6]} 17. Nf4 {[%clk 0:02:23.5]} 17... Ne6 {[%clk 0:02:24.8]} 18. Nxe6
{[%clk 0:02:17]} 18... Qxe6 {[%clk 0:02:24.9]} 19. Ne2 {[%clk 0:02:12.6]} 19...
Bxg2 {[%clk 0:02:14.2]} 20. Kxg2 {[%clk 0:02:11.2]} 20... Qg4 {[%clk 0:02:12.5]}
21. Ng1 {[%clk 0:02:09.6]} 21... Rad8 {[%clk 0:02:01.4]} 22. Qd1 {[%clk
0:02:08.8]} 22... Qf5 {[%clk 0:01:57.5]} 23. Nh3 {[%clk 0:02:00]} 23... Ng4
{[%clk 0:01:53.2]} 24. Nf4 {[%clk 0:01:58.7]} 24... Bh6 {[%clk 0:01:51.8]} 25.
d5 {[%clk 0:01:49.1]} 25... c5 {[%clk 0:01:51.5]} 26. Bb2 {[%clk 0:01:48.3]}
26... Bg7 {[%clk 0:01:41.7]} 27. Bxg7 {[%clk 0:01:46.8]} 27... Kxg7 {[%clk
0:01:41.9]} 28. Qc2 {[%clk 0:01:45.3]} 28... Ne5 {[%clk 0:01:39]} 29. Qc3 {[%clk
0:01:42.3]} 29... Kg8 {[%clk 0:01:38.8]} 30. a3 {[%clk 0:01:39.2]} 30... Qg4
{[%clk 0:01:27.6]} 31. Rdd1 {[%clk 0:01:25]} 31... Qf3+ {[%clk 0:01:03]} 32. Kg1
{[%clk 0:01:17.1]} 32... Ng4 {[%clk 0:00:47]} 33. Qd2 {[%clk 0:01:13.8]} 33...
Ne5 {[%clk 0:00:38.4]} 34. Qe2 {[%clk 0:01:11.2]} 34... Qxe2 {[%clk 0:00:27.3]}
35. Nxe2 {[%clk 0:01:12.1]} 35... f6 {[%clk 0:00:25.9]} 36. Nf4 {[%clk 0:01:09]}
36... Kf7 {[%clk 0:00:25.8]} 37. Rc3 {[%clk 0:01:04.3]} 37... Rh8 {[%clk
0:00:24.5]} 38. Ne6 {[%clk 0:01:02]} 38... Rdg8 {[%clk 0:00:21]} 39. b4 {[%clk
0:00:58.7]} 39... g5 {[%clk 0:00:19.1]} 40. hxg5 {[%clk 0:00:53.8]} 40... h4
{[%clk 0:00:19]} 41. gxh4 {[%clk 0:00:49.2]} 41... Rxh4 {[%clk 0:00:18.4]} 42.
Kf1 {[%clk 0:00:48.5]} 42... fxg5 {[%clk 0:00:15.6]} 43. bxc5 {[%clk 0:00:47.5]}
43... dxc5 {[%clk 0:00:14.5]} 44. Ke2 {[%clk 0:00:47]} 44... Nf3 {[%clk
0:00:14.3]} 45. Rb3 {[%clk 0:00:40.9]} 45... b6 {[%clk 0:00:13]} 46. a4 {[%clk
0:00:39.9]} 46... g4 {[%clk 0:00:13.1]} 47. a5 {[%clk 0:00:36.9]} 47... g3
{[%clk 0:00:13.4]} 48. fxg3 {[%clk 0:00:32.9]} 48... Rh2+ {[%clk 0:00:12.2]} 49.
Kf1 {[%clk 0:00:29.9]} 49... Rxg3 {[%clk 0:00:12.3]} 50. Nf4 {[%clk 0:00:23]}
50... Rg1# {[%clk 0:00:11.8]} 0-1

[Event "*** Titled Tuesday Blitz"]
[Site "Chess.com"]
[Date "2020.05.05"]
[Round "4"]
[White "LeonValdes"]
[Black "SketchyMoves"]
[Result "0-1"]
[WhiteElo "2397"]
[BlackElo "2619"]
[TimeControl "180+1"]
[EndTime "10:41:17 PDT"]
[Termination "SketchyMoves won by resignation"]

1. d4 {[%clk 0:03:00.9]} 1... e6 {[%clk 0:03:00.4]} 2. c4 {[%clk 0:03:00.1]}
2... Bb4+ {[%clk 0:03:00.2]} 3. Bd2 {[%clk 0:02:59.4]} 3... Qe7 {[%clk
0:03:00.5]} 4. Nf3 {[%clk 0:02:56.1]} 4... Nf6 {[%clk 0:03:00.6]} 5. g3 {[%clk
0:02:55.6]} 5... Nc6 {[%clk 0:03:00.4]} 6. Bg2 {[%clk 0:02:55.3]} 6... Bxd2+
{[%clk 0:03:00.4]} 7. Nbxd2 {[%clk 0:02:55.7]} 7... d6 {[%clk 0:03:00.5]} 8. O-O
{[%clk 0:02:55.4]} 8... O-O {[%clk 0:03:00.7]} 9. e4 {[%clk 0:02:52.9]} 9... e5
{[%clk 0:03:01.1]} 10. d5 {[%clk 0:02:48.9]} 10... Nb8 {[%clk 0:03:00.7]} 11.
Qc2 {[%clk 0:02:47.3]} 11... a5 {[%clk 0:03:00]} 12. Ne1 {[%clk 0:02:46.5]}
12... Na6 {[%clk 0:02:59.7]} 13. Nd3 {[%clk 0:02:46.4]} 13... Bg4 {[%clk
0:03:00.2]} 14. f3 {[%clk 0:02:45.9]} 14... Bd7 {[%clk 0:02:59.8]} 15. f4 {[%clk
0:02:42.1]} 15... b6 {[%clk 0:02:25.4]} 16. Rac1 {[%clk 0:02:28.3]} 16... c6
{[%clk 0:02:23.2]} 17. Rce1 {[%clk 0:02:09.5]} 17... Rfe8 {[%clk 0:02:17.5]} 18.
Qb3 {[%clk 0:02:00.5]} 18... Rab8 {[%clk 0:02:12.3]} 19. dxc6 {[%clk 0:01:52.7]}
19... Bxc6 {[%clk 0:02:10.8]} 20. Nb1 {[%clk 0:01:41.1]} 20... b5 {[%clk
0:02:07]} 21. Nc3 {[%clk 0:01:35.4]} 21... Qa7+ {[%clk 0:01:54.1]} 22. Kh1
{[%clk 0:01:28]} 22... bxc4 {[%clk 0:01:50.9]} 23. Qxc4 {[%clk 0:01:27.1]} 23...
Rec8 {[%clk 0:01:50.6]} 24. fxe5 {[%clk 0:00:54.6]} 24... Bxe4 {[%clk
0:01:43.3]} 25. Qa4 {[%clk 0:00:25.6]} 25... Bxd3 {[%clk 0:01:24]} 26. exf6
{[%clk 0:00:26.5]} 26... Bxf1 {[%clk 0:01:12.2]} 27. Rxf1 {[%clk 0:00:27.4]}
27... Rb4 {[%clk 0:01:04.2]} 28. Qd1 {[%clk 0:00:26.9]} 28... Qd4 {[%clk
0:00:57.3]} 29. Qf3 {[%clk 0:00:25.1]} 29... Nc7 {[%clk 0:00:31.5]} 30. fxg7
{[%clk 0:00:22.9]} 30... Qxg7 {[%clk 0:00:31]} 31. Ne4 {[%clk 0:00:22.9]} 31...
Rxb2 {[%clk 0:00:25.4]} 32. Nf6+ {[%clk 0:00:22.1]} 32... Kh8 {[%clk 0:00:25.4]}
33. Qf5 {[%clk 0:00:21.7]} 33... Rcb8 {[%clk 0:00:20.5]} 34. Be4 {[%clk
0:00:20.2]} 34... Ne6 {[%clk 0:00:18.8]} 35. Nh5 {[%clk 0:00:19.8]} 35... Qg6
{[%clk 0:00:17.6]} 36. Qxf7 {[%clk 0:00:14.6]} 36... Qxf7 {[%clk 0:00:17]} 37.
Rxf7 {[%clk 0:00:15.4]} 37... Ng5 {[%clk 0:00:17.7]} 38. Re7 {[%clk 0:00:14.1]}
38... Nxe4 {[%clk 0:00:16.1]} 39. Rxe4 {[%clk 0:00:15]} 39... Rxa2 {[%clk
0:00:14.4]} 40. Re1 {[%clk 0:00:14]} 40... Kg8 {[%clk 0:00:13.5]} 41. Nf6+
{[%clk 0:00:14.9]} 41... Kf7 {[%clk 0:00:13.3]} 42. Ne4 {[%clk 0:00:15.8]} 42...
Rbb2 {[%clk 0:00:12.9]} 43. Nxd6+ {[%clk 0:00:15.6]} 43... Kg6 {[%clk
0:00:13.3]} 44. Ne4 {[%clk 0:00:15.4]} 44... Rxh2+ {[%clk 0:00:13]} 45. Kg1
{[%clk 0:00:16.3]} 45... Rag2+ {[%clk 0:00:13.2]} 46. Kf1 {[%clk 0:00:16.5]}
46... Rh1+ {[%clk 0:00:13.6]} 47. Kxg2 {[%clk 0:00:16.7]} 47... Rxe1 {[%clk
0:00:14.5]} 48. Nc3 {[%clk 0:00:16.6]} 48... Rc1 {[%clk 0:00:13.2]} 49. Nd5
{[%clk 0:00:15.2]} 49... a4 {[%clk 0:00:12.6]} 50. Nb4 {[%clk 0:00:14.9]} 50...
a3 {[%clk 0:00:12.4]} 51. Kf3 {[%clk 0:00:15.8]} 51... Rc4 {[%clk 0:00:11.3]}
52. Na2 {[%clk 0:00:15]} 52... Rc2 {[%clk 0:00:11.4]} 53. Nb4 {[%clk 0:00:15.5]}
53... Rb2 {[%clk 0:00:11.9]} 54. Nd3 {[%clk 0:00:14.8]} 54... Rb3 {[%clk
0:00:12.4]} 0-1